Cogmind - Beta 14 @@@ ROGUE MODE // 2024.09.08 @ 16:58:32 Player: Maulwurf Result: Core destroyed Performance ------------- Evolutions (2) 1000 Regions Visited (3) 600 Robots Destroyed (17) 85 Value Destroyed (440) 440 Prototype IDs (0) 0 Alien Tech Used (0) 0 Bonus (0) 0 TOTAL SCORE: 2125 Bonus ------- None Cogmind --------- Core Integrity 0/550 Matter 145/300 Energy 80/100 System Corruption 0% Temperature Critical (847) Movement Treading (170) Location -8/Materials Parts ------- > --- POWER (1) -------- (None) > --- PROPULSION (4) --- Armored Treads Armored Treads Armored Treads Armored Treads > --- UTILITY (3) ------ Medium Storage Unit Light Armor Plating > --- WEAPON (3) ------- Heavy Laser Heavy Laser > --- INVENTORY (10) --- Light Deuterium Engine Armored Treads Heavy Laser Heavy Laser High-powered Shotgun High-powered Shotgun Peak State ------------ > --- POWER ------------ Light Ion Engine > --- PROPULSION ------- Gravmag System Gravmag System Gravmag System Gravmag System > --- UTILITY ---------- Medium Storage Unit Signal Interpreter Terrain Scanner > --- WEAPON ----------- Heavy Laser Heavy Laser Heavy Laser > --- INVENTORY -------- Aluminum Leg Wheel Light Armor Plating Light Armor Plating Heavy Laser High-powered Shotgun High-powered Shotgun [Rating: 33] Favorites ----------- Power Ion Engine Engine Ion Engine Propulsion Aluminum Leg Treads Armored Treads Leg Aluminum Leg Wheel Wheel Hover Unit Gravmag System Flight Unit Flight Unit Utility Small Storage Unit Device Terrain Scanner Storage Small Storage Unit Processor Signal Interpreter Protection Light Armor Plating Weapon Small Laser Energy Gun Small Laser Ballistic Gun Assault Rifle Launcher Missile Launcher Build | -11 -10 -9 -8 ------- Run | Yrd Mat Mat Mat Slots Evolved 4 | . . 2 2 Power . | . . . . Propulsion 2 | . . 2 . Utility 1 | . . . 1 Weapon 1 | . . . 1 Parts Attached 41 | 6 6 4 25 Power 4 | 1 1 . 2 Engine 4 | 1 1 . 2 Core . | . . . . Reactor . | . . . . Propulsion 19 | 2 . 2 15 Treads 7 | . . . 7 Leg 2 | 2 . . . Wheel 4 | . . . 4 Hover 4 | . . . 4 Flight 2 | . . 2 . Utility 7 | 1 3 . 3 Device 1 | . 1 . . Storage 3 | 1 2 . . Processor 1 | . . . 1 Hackware . | . . . . Protection 2 | . . . 2 Artifact . | . . . . Weapon 11 | 2 2 2 5 Energy Gun 6 | 1 2 . 3 Energy Cannon . | . . . . Ballistic Gun 4 | 1 . 2 1 Ballistic Cannon . | . . . . Launcher 1 | . . . 1 Special Weapon . | . . . . Impact Weapon . | . . . . Slashing Weapon . | . . . . Piercing Weapon . | . . . . Special Melee Weapon . | . . . . Unidentified Prototypes . | . . . . Parts Lost 5 | . . 2 3 Power 1 | . . . 1 Propulsion . | . . . . Utility 1 | . . . 1 Weapon 3 | . . 2 1 Highest Loss Streak 3 | . . 2 3 To Critical Strikes . | . . . . Average Slot Usage (%) 86 | . 88 67 96 Engine 10 | . 13 11 8 Treads 12 | . . . 25 Leg 9 | . 22 11 . Wheel 1 | . . . 3 Flight 1 | . . 1 1 Device 8 | . 11 11 4 Storage 10 | . 13 11 9 Processor 2 | . . . 4 Protection 3 | . . . 8 Energy Gun 18 | . 18 18 17 Ballistic Gun 5 | . 8 2 5 Launcher 1 | . . . 3 Peak Build Rating 33 | 6 7 9 33 Average Rating 9 | 5 6 6 28 On Entrance 5 | . 6 6 9 Naked Turns . | . . . . Heaviest Build 90 | 13 90 17 39 Greatest Support 80 | 20 20 10 80 Greatest Overweight (x) 8 | 1 8 2 8 Average Overweight (x) . | . . 1 . Largest Inventory Capacity 25 | 8 25 10 10 Average Capacity 8 | 7 10 10 10 Most Carried 10 | 5 6 7 10 Average Carried 3 | 2 3 4 6 Final Capacity 10 | 8 10 10 10 Final Carried 7 | 2 3 7 6 Class Distribution -------------------- 82% | Mutant 8% | Tank 7% | Skirmisher Dominant Class ---------------- Mutant | -10/Materials Mutant | -9/Materials Tank | -8/Materials Resources | -11 -10 -9 -8 ----------- Run | Yrd Mat Mat Mat Matter Collected 708 | 249 62 36 361 Remotely . | . . . . Salvage Created 606 | . 85 216 305 Parts 37 | . 5 17 15 Haulers Intercepted . | . . . . Recyclers Shooed 1 | . 1 . . Parts Field Recycled . | . . . . Retrieved Matter . | . . . . Parts Self-Destructed . | . . . . Prevented . | . . . . Kills | -11 -10 -9 -8 ------- Run | Yrd Mat Mat Mat Combat Hostiles Destroyed 10 | . . 6 4 Guns 9 | . . 6 3 AOE 1 | . . . 1 Classes Destroyed 8 | . 3 3 2 Worker 1 | . 1 . . Tunneler 1 | . . . 1 Recycler 1 | . . . 1 Operator 1 | . 1 . . Watcher 3 | . 2 . 1 Swarmer 3 | . . 3 . Grunt 4 | . . 1 3 Sentry 3 | . . 2 1 Best Kill Streak 3 | . 2 3 2 Combat Bots Only 3 | . . 3 2 Max Kills in Single Turn 2 | . 1 1 2 Gunslinging 1 | . . . 1 Exploded 1 | . . . 1 Melee . | . . . . Uniques/NPCs Destroyed . | . . . . Combat | -11 -10 -9 -8 -------- Run | Yrd Mat Mat Mat Hostile Shots Fired 96 | . 3 39 54 Missed 23 | . 2 12 9 Damage Taken 2035 | . 13 310 1712 Core 700 | . . 65 635 Absorbed by Shields . | . . . . Core Remaining (%) 94 | 100 100 83 . Volleys Fired 58 | . 10 22 26 Largest 3 | . 2 2 3 Hottest 207 | . 60 80 207 Shots Fired 118 | . 17 34 67 Gun 105 | . 17 34 54 Cannon . | . . . . Launcher 13 | . . . 13 Special . | . . . . Kinetic 8 | . 7 1 . Thermal 70 | . 1 15 54 Explosive 13 | . . . 13 Electromagnetic 27 | . 9 18 . Robot Hit Streak 12 | . 5 10 12 Robot Miss Streak 6 | . 3 3 6 Penetration Max . | . . . . Secondary Targets 1 | . . . 1 Max Gunslinging Chain 1 | . . . 1 Shots Hit Robots 66 | . 10 22 34 Core Hits 33 | 1 6 9 17 Critical Kills . | . . . . Critical Parts Destroyed . | . . . . Critical Strikes 3 | . . . 3 Burn 3 | . . . 3 Melee Attacks . | . . . . Impact . | . . . . Slashing . | . . . . Piercing . | . . . . Sneak Attacks . | . . . . Combat Hostiles . | . . . . Follow-up Attacks . | . . . . Damage Inflicted 1386 | 45 158 244 939 Guns 928 | . 155 244 529 Cannons . | . . . . Explosions 410 | . . . 410 Melee . | . . . . Ramming 48 | 45 3 . . Kinetic 64 | . 53 11 . Thermal 617 | . 11 77 529 Explosive 410 | . . . 410 Electromagnetic 247 | . 91 156 . Impact . | . . . . Slashing . | . . . . Piercing . | . . . . Highest Corruption . | . . . . Average Corruption . | . . . . Corruption Purged . | . . . . Corruption Blocked . | . . . . Overload Shots . | . . . . Overflow Damage . | . . . . Projectiles . | . . . . Explosions . | . . . . Melee . | . . . . Knockbacks . | . . . . Impact . | . . . . Kinetic . | . . . . Secondary . | . . . . Self-Inflicted Damage 43 | . . . 43 Shots 1 | . . . 1 Rammed 1 | . . . 1 Targets Rammed 11 | 9 1 . 1 Kicked 10 | 9 1 . . Crushed . | . . . . Highest Temperature 847 | . . 117 847 Average Temperature 327 | . . 41 407 Received Heat Transfer 417 | . 9 84 324 Effects 46 | . . . 46 Shutdowns 8 | . . . 8 Energy Bleed 6 | . . . 6 Interference 4 | . . . 4 Matter Decay 4 | . . . 4 Short Circuit 4 | . . . 4 Damage (minor) 3 | . . . 3 Damage (major) 11 | . . . 11 Damage (core) 6 | . . . 6 Siege Activations . | . . . . Robots Corrupted . | . . . . Combat Hostiles . | . . . . Parts Fried . | . . . . Impact Corruptions . | . . . . Robots Melted . | . . . . Combat Hostiles . | . . . . Parts Melted 3 | . . 1 2 Heat Transferred 1458 | . 25 175 1258 Parts Sabotaged . | . . . . Parts Stolen . | . . . . Parts Stripped . | . . . . Power Chain Reactions . | . . . . Alert | -11 -10 -9 -8 ------- Run | Yrd Mat Mat Mat Peak Influence 210 | . 49 210 188 Initial 88 | . . 20 88 Average 34 | . 22 106 114 Maximum Alert Level 1 | . . 1 . Low Security (%) 99 | 100 100 91 100 Level 1 . | . . 8 . Level 2 . | . . . . Level 3 . | . . . . Level 4 . | . . . . Level 5 . | . . . . High Security . | . . . . Max Security . | . . . . Squads Dispatched 2 | . . 1 1 Investigation . | . . . . Extermination . | . . . . Reinforcement 2 | . . 1 1 Assault . | . . . . Garrison . | . . . . Intercept . | . . . . Searches Triggered . | . . . . Construction Impeded . | . . . . Haulers Reinforced . | . . . . Active Scanning Responses . | . . . . Cargo Convoy Interrupts . | . . . . Stealth | -11 -10 -9 -8 --------- Run | Yrd Mat Mat Mat Distress Signals 2 | . 1 1 . Communications Jammed . | . . . . Distress Signals . | . . . . Times Spotted 25 | . 7 10 8 Peak Tracking Total 5 | . 3 5 4 Tactical Retreats 4 | . . 2 2 Traps | -11 -10 -9 -8 ------- Run | Yrd Mat Mat Mat Traps Triggered 1 | . 1 . . Indirectly . | . . . . Trap Hack Attempts . | . . . . Triggered . | . . . . Disarmed . | . . . . Reprogrammed . | . . . . Reused . | . . . . Traps Extracted . | . . . . Installed . | . . . . Triggered 1 | . 1 . . Machines | -11 -10 -9 -8 ---------- Run | Yrd Mat Mat Mat Machines Disabled 1 | . . . 1 Max in Single Turn 1 | . . . 1 Machines Repaired . | . . . . Machines Dismantled . | . . . . Machines Sabotaged . | . . . . Overloaded Fab Kills . | . . . . Hacking | -11 -10 -9 -8 --------- Run | Yrd Mat Mat Mat Machines Accessed 2 | . 2 . . Terminals 2 | . 2 . . Fabricators . | . . . . Repair Stations . | . . . . Recycling Units . | . . . . Scanalyzers . | . . . . Garrison Access . | . . . . Total Hacks 5 | . 5 . . Successful 1 | . 1 . . Failed 4 | . 4 . . Catastrophic 1 | . 1 . . Database Lockouts . | . . . . Manual 3 | . 3 . . Terminals 5 | . 5 . . Fabricators . | . . . . Repair Stations . | . . . . Recycling Units . | . . . . Scanalyzers . | . . . . Garrison Access . | . . . . Terminal Hacks 1 | . 1 . . Record 1 | . 1 . . Fabricator Hacks . | . . . . Repair Station Hacks . | . . . . Recycling Unit Hacks . | . . . . Scanalyzer . | . . . . Garrison Access Hacks . | . . . . Unauthorized Hacks . | . . . . Terminals . | . . . . Fabricators . | . . . . Repair Stations . | . . . . Recycling Units . | . . . . Scanalyzers . | . . . . Garrison Access . | . . . . Data Cores Recovered 1 | . 1 . . Used . | . . . . Hacking Detections 2 | . 2 . . Full Trace Events 1 | . 1 . . Feedback Events . | . . . . Feedback Blocked . | . . . . Robot Schematics Acquired . | . . . . Robots Built . | . . . . Authchips . | . . . . Time . | . . . . Total Robot Build Rating . | . . . . Part Schematics Acquired . | . . . . Parts Built . | . . . . Authchips . | . . . . Time . | . . . . Total Part Build Rating . | . . . . Parts Repaired . | . . . . Time . | . . . . Parts Recycled . | . . . . Recycled Matter . | . . . . Retrieved Matter . | . . . . Retrieved Components . | . . . . Parts Scanalyzed . | . . . . Part Schematics Acquired . | . . . . Parts Damaged . | . . . . Bothacking | -11 -10 -9 -8 ------------ Run | Yrd Mat Mat Mat Used RIF Installer . | . . . . Robots Hacked . | . . . . Non-combat . | . . . . Combat . | . . . . Robot Hacks Applied . | . . . . Relay Couplers Released . | . . . . Fabnet Peak Effective % . | . . . . Robots Rewired . | . . . . Allies Hacked . | . . . . Hacks Repelled . | . . . . Allies | -11 -10 -9 -8 -------- Run | Yrd Mat Mat Mat Total Allies . | . . . . Largest Group . | . . . . Highest-Rated Group . | . . . . Highest-Rated Ally . | . . . . Total Orders . | . . . . Ally Attacks . | . . . . Total Damage . | . . . . Kills . | . . . . Allies Corrupted . | . . . . Allies Melted . | . . . . Intel | -11 -10 -9 -8 ------- Run | Yrd Mat Mat Mat Robot Analysis Total . | . . . . Derelict Logs Recovered . | . . . . Drone Launches . | . . . . Drone Recoveries . | . . . . Exploration | -11 -10 -9 -8 ------------- Run | Yrd Mat Mat Mat Turns Passed 3302 | 2039 300 378 585 Spaces Moved 1159 | 555 172 158 274 Core 21 | 20 . . 1 Treads 180 | . . . 180 Legs 848 | 535 172 141 . Wheels 38 | . . . 38 Hover 31 | . . . 31 Flight 41 | . . 17 24 Fastest Speed 48 | 50 120 190 48 Average Speed 140 | 118 146 191 152 Slowest Speed 680 | 190 680 207 450 Overloaded Moves . | . . . . Propulsion Burnouts . | . . . . Robots Hopped . | . . . . Cave-ins Triggered . | . . . . Exploration Rate (%) 34 | 75 27 17 18 Regions Visited 3 Branch Regions . Pre-discovered Areas . | . . . . Known Exits Taken . | . . . . Unknown Exits Taken 3 | 1 1 1 . Scrap Searched . | . . . . Spaces Dug . | . . . . Terrain Destroyed 82 | . . . 82 Melee . | . . . . Projectile . | . . . . AOE 82 | . . . 82 Terrain Rammed . | . . . . Walls Destroyed . | . . . . Machines Disabled . | . . . . Actions | -11 -10 -9 -8 --------- Run | Yrd Mat Mat Mat Total 2742 | 1935 204 201 402 Wait 1380 | 1358 5 4 13 Move 1156 | 554 171 157 274 Hop . | . . . . Pick Up 54 | 8 7 11 28 Fast Attach . | . . . . Attach 40 | 6 6 4 24 Detach 12 | . 2 . 10 Swap 1 | . . . 1 Drop 30 | . 2 3 25 Fire 58 | . 10 22 26 Melee . | . . . . Ram . | . . . . Kick 10 | 9 1 . . Crush 1 | . . . 1 Escape Stasis . | . . . . Rewire . | . . . . Trap . | . . . . Miscellaneous . | . . . . Route ------- -11/Scrapyard -10/Materials -9/Materials -8/Materials History --------- Turn | Location | Event 5 | -11/Scrapyard | Discovered new exit (range 15) 2040 | -11/Scrapyard | Entered Materials 2041 | -10/Materials | Build established: Mutant 2199 | -10/Materials | Discovered new exit (range 11) 2340 | -10/Materials | Entered another Materials area 2340 | -9/Materials | Evolved 2 slots: Propulsion x2 2675 | -9/Materials | Discovered new exit (range 10) 2718 | -9/Materials | Entered another Materials area 2718 | -8/Materials | Evolved 2 slots: Utility x1, Weapon x1 3283 | -8/Materials | Core integrity fell below 50% 3288 | -8/Materials | Core integrity fell below 20% 3304 | -8/Materials | Core destroyed Last Messages --------------- 03290_ Overheating: Core damaged (-55). 03290_ The unstable cave ceiling collapses. 03291_ Power failure, Lgt. Angular Momentum Engine shutdown. 03293_ Hvy. Laser broken. 03293_ Overheating: Short circuit. 03294_ Penetrated by Slug. 03294_ Lgt. Armor Plating destroyed. 03294_ Electrolysis Chamber disabled. 03295_ Overheating: Hvy. Laser damaged (-10). 03295_ Overheating: Missile Launcher damaged (-9). 03295_ U-05 Engineer lays Concrete. 03298_ Power failure, Lgt. Angular Momentum Engine shutdown. 03298_ Critical hit (Burn: +37). 03298_ Lgt. Angular Momentum Engine destroyed. 03298_ U-05 Engineer lays Concrete. 03299_ Missile Launcher destroyed. 03299_ U-05 Engineer lays Concrete. 03300_ Critical hit (Burn: +37). 03300_ U-05 Engineer lays Concrete. 03304_ Overheating: Core damaged (-110). Map ----- +----------------------------------------------------+ | ???????????????????????????? ""S + #???#?? | | ???????????????????????????# "" # #?#???? | | ???????????????????????????# """ # #?????? | | ???????????????????????????#? """ # #?????? | | ??????????????????????????????""" # #?????? | | ???????????????????????????????? # #?????? | | ???????????????????????????????### ##### #?????? | | ???????????????????????????############# #?????? | | ?????????????????????????? #?????? | | ?????????????????????????? #?????? | | ?????????????????????????? #?????? | | ???????????????????????????###### #####+#####??? | | ????????????????????????????????# # #??? | | ???????????????????????#######??# # #??? | | ???????????????????????# #??# # #??? | | ?????????????????######## #### # """ """ #??? | | ??????????? = + """ """ #??? | | ??????????? ##;##### #### # """ """ #??? | | ?????????????????????# =# #??### # #??? | | ?????????????????????#/ ###????# # #??? | | ?????????????????????# "#####??# ##########???? | | ?????????????????????# # ####+####?????????? | | ?????????????????????# a??????????? | | ?????????????????????# g ] g ??????????????? | | ?????????????????????#% ??????????????????? | | ?????????????????????# @ #?????????????????????? | | ?????????????????????##; ##?????????????????????? | | ??????????????????????+ #??????????????????????? | | ??????????????????????# #??????????????????????? | | ?????????????????????? ??????????????????????? | | ????????????????????? ??????????????????????? | | ???????????????????? ?????????????????????? | | ??????????????????? / ?????????????????????? | | ??????????????????#### ????????????????????? | | ?????????????????????# !????????????????????? | | ????????????????????? ???????????????????? | | ????????????????????? #???????????????????? | | ???????????????????? H #???????????????????? | | ????????????????????# ???????????????????? | | ???????????????????? u ????????????????????? | | ????????????????????? ?????????????????????? | | ?????????????????????????????????????????????????? | | ?????????????????????????????????????????????????? | | ?????????????????????????????????????????????????? | | ?????????????????????????????????????????????????? | | ?????????????????????????????????????????????????? | | ?????????????????????????????????????????????????? | | ?????????????????????????????????????????????????? | | | | | +----------------------------------------------------+ Best States ------------- Heat Dissipation 31 Energy Generation 18 Energy Capacity 250 Matter Stores 300 Matter Capacity 300 Sight Range 16 Terrain Scan Range 14 Terrain Scan Density 10 Armor Coverage 300 Evasion (%) 55 Recoil Reduction 4 Item Schematics ----------------- None Robot Schematics ------------------ None Fabricated ------------ Nothing Alien Tech Used ----------------- None Achievements -------------- Universal Adapter Challenges ------------ None Game ------ Seed RefineryMediumKatana Manual? 0 Play Time 00:27:28 Cumulative 3.3 hours Start 2024.09.08 @ 16:33:04 End 2024.09.08 @ 16:58:32 Sessions 1 Manual Loads 0 Difficulty Rogue Special Mode None Game No. 9 Rogue 9 Adventurer 0 Explorer 0 Win Type - Total 0 Types 0/0/0/0/0/0/0/0/0 Lore% 1 Gallery% 5 Achievement% 7 Wizard Run 0 Options --------- Layout 0 ASCII 0 Keyboard 1 Movement Numpad Keybinds 0 Fullscreen 1 Font 18/SmallcapsGlow Map View 76x50 Zoom Use 0% Tactical HUD 1 Map Filters NONE Filters NONE Steam 1 RUN: 9364834d-babe-4713-bdc7-2ff035bf23c8